bitfinex/quotes_BTCUSD_20251120
["timestamp","ask_amount","ask_price","bid_price","bid_amount"]
[1763641897977,0.22879147,91787.0,91784.0,1.08475823]
[1763641897978,0.21790052,91785.0,91784.0,1.08475823]
[1763641898197,0.22879147,91787.0,91784.0,1.08475823]
[1763641898198,0.22878685,91789.0,91784.0,1.09565337]
[1763641898398,0.217894,91788.0,91785.0,0.21790035]
[1763641898598,0.22879079,91787.0,91784.0,1.09565337]
[1763641898795,0.01089478,91787.0,91784.0,1.31355556]
[1763641899012,0.01089467,91788.0,91785.0,0.21789994]
[1763641899227,0.2287912,91787.0,91784.0,1.31355556]
[1763641899428,0.21789968,91786.0,91784.0,1.08475823]
[1763641899723,0.2287912,91787.0,91784.0,1.08475823]
[1763641900117,0.02089442,91790.0,91788.0,0.21789112]
[1763641900118,0.00999999,91790.0,91788.0,0.21789112]
[1763641900351,0.00999999,91790.0,91789.0,0.01087825]
[1763641901115,0.00999999,91790.0,91787.0,0.2287904]
[1763641901319,0.00999999,91790.0,91788.0,0.21789291]
[1763641902034,0.01099999,91790.0,91788.0,0.21789291]
[1763641902784,0.01099999,91790.0,91789.0,0.21789103]
[1763641902997,0.001,91790.0,91789.0,0.21789103]
[1763641904768,0.22877812,91792.0,91787.0,0.22879042]
[1763641904995,0.22877358,91794.0,91789.0,0.01089455]
[1763641905317,0.001,91790.0,91789.0,0.01089455]
[1763641905504,0.00999999,91800.0,91797.0,0.0108936]
[1763641905648,0.00999999,91800.0,91799.0,0.21786729]
[1763641906055,0.00999999,91800.0,91797.0,1.31343442]
[1763641906256,0.00999999,91800.0,91799.0,0.21786729]
[1763641906673,0.01099999,91800.0,91799.0,0.21786729]
[1763641907679,0.01199999,91800.0,91799.0,0.21786729]
[1763641907879,0.01199999,91800.0,91798.0,0.21786967]
[1763641908095,0.01199999,91800.0,91799.0,0.22873961]
[1763641908323,0.001,91800.0,91799.0,0.21786729]
[1763641908521,0.001,91800.0,91799.0,0.25596875]
[1763641908748,0.002,91800.0,91799.0,0.25596875]
[1763641909158,0.001,91800.0,91799.0,0.25596875]
[1763641909538,0.002,91800.0,91799.0,0.25596875]
[1763641909750,0.001,91800.0,91799.0,0.21786729]
[1763641910476,0.001,91800.0,91799.0,0.25596875]
[1763641911852,0.001,91800.0,91799.0,0.21786729]
[1763641912668,0.001,91800.0,91798.0,0.00368]
[1763641912883,0.001,91800.0,91799.0,0.21786729]
[1763641914590,0.00999999,91810.0,91809.0,0.21784356]
[1763641914734,0.00999999,91810.0,91809.0,1.30251457]
[1763641915414,0.22784118,91810.0,91809.0,1.08467101]
[1763641916414,0.22984118,91810.0,91809.0,1.08467101]
[1763641918280,0.01199999,91810.0,91809.0,1.08467101]
[1763641918476,0.01199999,91810.0,91809.0,1.30251457]
[1763641919352,0.002,91810.0,91809.0,1.30251457]
[1763641920196,0.001,91810.0,91809.0,1.30251457]
[1763641920615,0.00999999,91820.0,91811.0,0.01089194]
[1763641920830,0.00999999,91820.0,91817.0,0.01089122]
[1763641921049,0.02089086,91820.0,91816.0,0.21782506]
[1763641921191,0.23870893,91820.0,91816.0,0.21782506]
[1763641921600,0.01089122,91817.0,91809.0,1.08467101]
[1763641921803,0.22872768,91813.0,91809.0,1.08467101]
[1763641922022,0.01089182,91812.0,91809.0,1.08475823]
[1763641922232,0.01089134,91816.0,91809.0,1.08475823]
[1763641922432,0.22872523,91814.0,91809.0,1.31349385]
[1763641922633,0.2178298,91815.0,91811.0,0.01089194]
[1763641922791,0.22872391,91814.0,91811.0,0.01089194]
[1763641923153,0.01089158,91814.0,91811.0,0.22873024]
[1763641923409,0.01089158,91814.0,91809.0,1.0956504]
[1763641923410,0.21783733,91812.0,91809.0,1.0956504]
[1763641923761,0.21783733,91812.0,91809.0,1.31349223]
[1763641923978,0.21784119,91810.0,91809.0,1.08475823]
[1763641924312,0.0108917,91813.0,91809.0,1.30259942]
[1763641924518,0.22870585,91821.0,91814.0,0.2178317]
[1763641924717,0.02033915,91819.0,91818.0,0.21782221]
[1763641925562,0.02033915,91819.0,91816.0,0.22871829]
[1763641925563,0.03123014,91819.0,91816.0,0.22871829]
[1763641925801,0.21782916,91816.0,91811.0,0.22872602]
[1763641925977,0.22871778,91817.0,91813.0,0.22872554]
[1763641926203,0.02034847,91816.0,91813.0,0.0108917]
[1763641926419,0.02034847,91815.0,91813.0,0.0108917]
[1763641926623,0.01089122,91817.0,91814.0,0.22872328]
[1763641926832,0.22781784,91820.0,91817.0,0.01089122]
[1763641927035,0.02135966,91819.0,91817.0,0.22871381]
[1763641927237,0.02035966,91818.0,91817.0,0.22871381]
[1763641927569,0.00999999,91820.0,91818.0,0.21782221]
[1763641927775,0.00999999,91820.0,91819.0,0.21781984]
[1763641927974,0.03035824,91820.0,91819.0,1.30249085]
[1763641928444,0.03035824,91820.0,91819.0,1.08467101]
[1763641929165,0.24917701,91820.0,91819.0,1.08467101]
[1763641929728,0.23917702,91820.0,91819.0,1.08467101]
[1763641930129,0.24017702,91820.0,91819.0,1.08467101]
[1763641930362,0.29227951,91820.0,91819.0,1.08467101]
[1763641934671,0.65477951,91820.0,91819.0,1.08467101]
[1763641934876,0.26994368,91810.0,91797.0,0.0108936]
[1763641935087,0.31835324,91810.0,91809.0,1.08475823]
[1763641935287,0.34221324,91810.0,91809.0,1.08475823]
[1763641936451,0.34321324,91810.0,91809.0,1.08475823]
[1763641936652,0.34421324,91810.0,91809.0,1.08475823]
[1763641937154,0.29230324,91810.0,91809.0,1.08475823]
[1763641937719,0.07446205,91810.0,91809.0,1.08475823]
[1763641937918,0.07446205,91810.0,91809.0,1.30260179]
[1763641937919,0.02235956,91810.0,91809.0,1.30260179]
[1763641940339,0.002,91810.0,91809.0,1.30251457]
[1763641940828,0.001,91810.0,91809.0,1.30251457]
[1763641941023,0.05210249,91819.0,91814.0,0.01089158]
[1763641941227,0.02038928,91818.0,91812.0,0.01089182]
[1763641941590,0.07249177,91817.0,91816.0,0.21782695]
[1763641943399,0.07249177,91817.0,91815.0,0.21782929]
[1763641943567,0.07249177,91816.0,91815.0,0.21782929]
[1763641944452,0.05210249,91816.0,91815.0,0.21782929]
[1763641944644,0.07249275,91816.0,91815.0,0.21782929]
[1763641946284,0.2463,91854.0,91834.0,0.21778402]
[1763641946285,0.00999999,91840.0,91834.0,0.21778402]
[1763641946476,0.01088885,91837.0,91834.0,1.08467101]
[1763641946682,0.05210249,91835.0,91834.0,1.09556022]
[1763641946963,0.07249593,91835.0,91834.0,1.09556022]
[1763641947262,0.29027782,91835.0,91834.0,1.08467101]
[1763641948028,0.30268782,91835.0,91834.0,1.08467101]
[1763641948277,0.30368782,91835.0,91834.0,1.08467101]
[1763641949910,0.30468782,91835.0,91834.0,1.08467101]
[1763641951721,0.29227782,91835.0,91834.0,1.08467101]
[1763641952508,0.07449593,91835.0,91834.0,1.08467101]
[1763641952727,0.07449593,91835.0,91834.0,1.30245527]
[1763641953331,0.05410249,91835.0,91834.0,1.30245527]
[1763641956645,0.27188438,91835.0,91834.0,1.08467101]
[1763641956846,0.002,91835.0,91834.0,1.08467101]
[1763641957212,0.002,91835.0,91834.0,1.30245527]
[1763641958178,0.001,91835.0,91834.0,1.30245527]
[1763641958379,0.002,91835.0,91834.0,1.30245527]
[1763641958799,0.00999999,91850.0,91844.0,0.21776055]
[1763641958958,0.00999999,91850.0,91844.0,1.30243156]
[1763641960036,0.00023716,91845.0,91844.0,1.30243156]
[1763641963354,0.00023716,91845.0,91844.0,1.08467101]
[1763641963563,0.00023716,91845.0,91844.0,1.30243156]
[1763641966123,0.00123716,91845.0,91844.0,1.30243156]
[1763641966729,0.00223716,91845.0,91844.0,1.30243156]
[1763641966939,0.00123716,91845.0,91844.0,1.30243156]
[1763641968099,0.00023716,91845.0,91844.0,1.30243156]
[1763641968302,0.00023716,91845.0,91844.0,1.31179482]
[1763641968530,0.00023716,91845.0,91844.0,1.30611156]
[1763641969177,0.0002,91870.0,91844.0,1.30611156]
[1763641969178,0.0002,91870.0,91869.0,0.21770129]
[1763641969389,0.0006213,91870.0,91869.0,1.3023723]
[1763641972968,0.0006213,91870.0,91869.0,1.08467101]
[1763641974772,0.0006213,91870.0,91869.0,1.3023723]
[1763641976796,0.0006213,91870.0,91869.0,1.08467101]
[1763641976998,0.0006213,91870.0,91869.0,1.3023723]
[1763641980447,0.0006213,91870.0,91869.0,1.3060523]
[1763641983310,0.0006213,91870.0,91869.0,1.4534523]
[1763641983594,0.0002,91880.0,91879.0,0.21767759]
[1763641983797,0.00032631,91880.0,91879.0,1.34413006]
[1763641984632,0.0002,91890.0,91889.0,0.2176539]
[1763641984831,0.0002,91890.0,91889.0,1.30232491]
[1763641985456,0.0002,91890.0,91889.0,1.30600491]
[1763641985888,0.0002,91900.0,91899.0,0.21763022]
[1763641986097,0.0002,91900.0,91899.0,1.30230123]
[1763641986302,0.02049726,91900.0,91899.0,1.30230123]
[1763641988200,0.0002,91910.0,91909.0,0.21760654]
[1763641988409,0.00032629,91910.0,91909.0,1.08835101]
[1763641988599,0.00032629,91910.0,91909.0,1.31532081]
[1763641989073,0.00032629,91910.0,91909.0,1.08467101]
[1763641990324,0.00032629,91910.0,91909.0,1.30227755]
[1763641990527,0.00032629,91910.0,91909.0,1.08467101]
[1763641995442,0.00032629,91910.0,91909.0,1.30227755]
[1763641996277,0.0002,91920.0,91919.0,0.21758287]
[1763641996476,0.0002,91920.0,91919.0,1.30593388]
[1763641997923,0.0002,91920.0,91919.0,1.30693388]
[1763641999491,0.0002,91920.0,91919.0,1.30793388]
[1763642000782,0.0002,91920.0,91919.0,1.09035101]
[1763642001194,0.02048462,91920.0,91919.0,1.09035101]
[1763642001475,0.0002,91920.0,91919.0,1.09035101]
[1763642001707,0.02048499,91920.0,91919.0,1.08667101]
[1763642001881,0.02074603,91920.0,91919.0,1.08567101]
[1763642002085,0.02074603,91920.0,91919.0,1.08467101]
[1763642002309,0.00046104,91920.0,91919.0,1.08667101]
[1763642002633,0.02074566,91920.0,91919.0,1.08667101]
[1763642003451,0.02074566,91920.0,91919.0,1.08467101]
[1763642003704,0.02074566,91920.0,91919.0,1.30225388]
[1763642004771,0.00046104,91920.0,91919.0,1.30225388]
[1763642007081,0.00046104,91920.0,91919.0,1.08467101]
[1763642007239,0.00046104,91920.0,91919.0,1.30225388]
[1763642007824,0.21804154,91920.0,91919.0,1.08467101]
[1763642008026,0.23834255,91920.0,91919.0,1.08467101]
[1763642008960,0.02076205,91920.0,91919.0,1.08467101]
[1763642009140,0.02176205,91920.0,91919.0,1.08467101]
[1763642009546,0.24034255,91920.0,91919.0,1.08467101]
[1763642010677,0.33314504,91920.0,91919.0,1.08467101]
[1763642010893,0.30894028,91920.0,91919.0,1.08467101]
[1763642011524,0.07488978,91920.0,91919.0,1.08467101]
[1763642011726,0.07490097,91920.0,91919.0,1.08467101]
[1763642012138,0.29248147,91920.0,91919.0,1.08467101]
[1763642012405,0.07490097,91920.0,91919.0,1.08467101]
[1763642013187,0.07491337,91920.0,91919.0,1.08467101]
[1763642014517,0.02281088,91920.0,91919.0,1.08467101]
[1763642017699,0.24039138,91920.0,91919.0,1.08467101]
[1763642018150,0.30791387,91920.0,91919.0,1.08467101]
[1763642018330,0.33083387,91920.0,91919.0,1.08467101]
[1763642018529,0.30791387,91920.0,91919.0,1.08467101]
[1763642018959,0.33083387,91920.0,91919.0,1.08467101]
[1763642019973,0.29249387,91920.0,91919.0,1.08467101]
[1763642020410,0.07491337,91920.0,91919.0,1.08467101]
[1763642021220,0.07491337,91920.0,91919.0,1.30225388]
[1763642021622,0.07491337,91920.0,91919.0,0.21758287]
[1763642021822,0.07491337,91920.0,91919.0,1.08467101]
[1763642022490,0.02281088,91920.0,91919.0,1.30225388]
[1763642022990,0.02281088,91920.0,91919.0,1.08467101]
[1763642023156,0.02281088,91920.0,91919.0,1.30225388]
[1763642023348,0.00246104,91920.0,91919.0,1.30225388]
[1763642023550,0.00146104,91920.0,91919.0,1.30225388]
[1763642024319,0.00046104,91920.0,91919.0,1.30225388]
[1763642026480,0.00046104,91920.0,91919.0,0.21758287]
[1763642040026,0.00046104,91920.0,91918.0,0.22126297]
[1763642040027,0.0002,91930.0,91929.0,0.2175592]
[1763642040231,0.0002,91930.0,91929.0,1.30591021]
[1763642045794,0.00048997,91930.0,91929.0,1.30591021]
[1763642048708,0.00048997,91930.0,91929.0,1.30691021]
[1763642049959,0.00048997,91930.0,91929.0,1.30591021]
[1763642050172,0.00048997,91930.0,91929.0,1.30791021]
[1763642050606,0.00048997,91930.0,91929.0,1.30691021]
[1763642051023,0.00048997,91930.0,91929.0,1.34501167]
[1763642051440,0.00048997,91930.0,91929.0,1.34401167]
[1763642056486,0.00048997,91930.0,91929.0,1.12645247]
[1763642056710,0.00048997,91930.0,91929.0,1.34401167]
[1763642058312,0.00048997,91930.0,91929.0,1.49141167]
[1763642059602,0.0002,91940.0,91939.0,0.21753553]
[1763642059750,0.00032627,91940.0,91939.0,1.30220654]
[1763642059967,0.00032627,91940.0,91939.0,1.30588654]
[1763642060196,0.05230249,91960.0,91957.0,0.01087464]
[1763642060197,0.0002,91960.0,91957.0,0.01087464]
[1763642060338,0.0002,91960.0,91959.0,0.25558968]
[1763642060853,0.0002,91960.0,91959.0,0.21748822]
[1763642061690,0.0002,91960.0,91959.0,0.21848822]
[1763642062634,0.0002,91960.0,91959.0,0.21948822]
[1763642065945,4.549e-05,91960.0,91959.0,0.21948822]
[1763642066354,0.00062518,91960.0,91959.0,0.21948822]
[1763642067354,0.0002,91970.0,91969.0,0.21746458]
[1763642067581,0.0006208,91970.0,91969.0,1.30581559]
[1763642068111,0.00091058,91970.0,91969.0,1.30581559]
[1763642068315,5.8e-07,91970.0,91969.0,1.30581559]
[1763642068520,0.0002,91980.0,91979.0,0.21744093]
[1763642068669,0.00032619,91980.0,91979.0,1.30211194]
[1763642070292,0.00032619,91980.0,91979.0,1.30311194]
[1763642071629,0.00032619,91980.0,91979.0,1.30211194]
[1763642073523,0.00032619,91980.0,91979.0,1.08835101]
[1763642073671,0.00032619,91980.0,91979.0,1.30579194]
[1763642074276,0.00061593,91980.0,91979.0,1.30579194]
[1763642074524,0.00061593,91980.0,91979.0,1.08835101]
[1763642074846,0.00061593,91980.0,91979.0,1.30579194]
[1763642075500,0.2180545,91980.0,91979.0,1.08467101]
[1763642075696,0.00061593,91980.0,91979.0,1.08467101]
[1763642076102,0.2180545,91980.0,91979.0,1.08467101]
[1763642077877,0.28671699,91980.0,91979.0,1.08467101]
[1763642078730,0.27015699,91980.0,91979.0,1.08467101]
[1763642078923,0.05271842,91980.0,91979.0,1.08467101]
[1763642079130,0.27115699,91980.0,91979.0,1.08467101]
[1763642079370,0.27215699,91980.0,91979.0,1.08467101]
[1763642082592,0.00261593,91980.0,91979.0,1.30211194]
[1763642083253,0.00161593,91980.0,91979.0,1.30211194]
[1763642083685,0.00261593,91980.0,91979.0,1.30579194]
[1763642083892,0.00261593,91980.0,91979.0,1.08835101]
[1763642084107,0.00261593,91980.0,91979.0,1.30579194]
[1763642084317,0.00161593,91980.0,91979.0,1.30579194]
[1763642084930,0.00261593,91980.0,91979.0,1.30579194]
[1763642088377,0.00161593,91980.0,91979.0,1.30579194]
[1763642088591,0.00061593,91980.0,91979.0,1.30579194]
[1763642091532,0.00061593,91980.0,91979.0,1.30579194]
[1763642091753,0.01087133,91985.0,91979.0,1.08835101]
[1763642091976,0.01087169,91982.0,91979.0,1.08467101]
[1763642092158,0.05210249,91984.0,91979.0,1.31298354]
[1763642092411,0.2804035,91984.0,91979.0,1.31298354]
[1763642092644,0.21743857,91980.0,91979.0,1.08467101]
[1763642093246,0.2174362,91981.0,91979.0,1.08467101]
[1763642093395,0.22831014,91982.0,91979.0,1.08467101]
[1763642093596,0.05210249,91984.0,91979.0,1.08467101]
[1763642093847,0.05210249,91984.0,91981.0,0.01087181]
[1763642094148,0.21743384,91982.0,91979.0,1.08467101]
[1763642094437,0.21843639,91981.0,91979.0,1.08467101]
[1763642094612,0.21743857,91980.0,91979.0,1.08467101]
[1763642097150,0.21743857,91980.0,91966.0,0.01087358]
[1763642097151,0.21749229,91958.0,91951.0,0.15827535]
[1763642097351,0.21749229,91958.0,91952.0,0.23205975]
[1763642097352,0.21749533,91956.0,91952.0,0.23205975]
[1763642097552,0.01087464,91957.0,91951.0,1.08467101]
[1763642097553,0.21750241,91953.0,91951.0,1.08467101]
[1763642097767,0.01087476,91956.0,91951.0,1.08467101]
[1763642097985,0.21750478,91952.0,91951.0,1.08467101]
[1763642098192,0.21750241,91953.0,91951.0,1.08467101]
[1763642098896,0.31090727,91952.0,91951.0,1.08467101]
[1763642099120,0.26960727,91952.0,91951.0,1.08467101]
[1763642099322,0.28616727,91952.0,91951.0,1.08467101]
[1763642099626,0.31090727,91952.0,91951.0,1.08467101]
[1763642099763,0.28616727,91952.0,91951.0,1.08467101]
[1763642099964,0.26960727,91952.0,91951.0,1.08467101]
[1763642100777,0.27060727,91952.0,91951.0,1.08467101]
[1763642101172,0.27160727,91952.0,91951.0,1.08467101]
[1763642101395,0.05410249,91952.0,91951.0,1.08467101]
[1763642102039,0.002,91952.0,91951.0,1.08467101]
[1763642103266,0.001,91952.0,91951.0,1.08467101]
[1763642103610,0.00999999,91960.0,91958.0,0.21749059]
[1763642103759,0.00999999,91960.0,91959.0,0.01077755]
[1763642105580,0.00999999,91960.0,91959.0,0.22826577]
[1763642105781,0.00999999,91960.0,91959.0,0.21748822]
[1763642105983,0.00999999,91980.0,91973.0,0.22832708]
[1763642106182,0.26954342,91979.0,91974.0,0.2283252]
[1763642106569,0.01087181,91981.0,91978.0,0.21744229]
[1763642106570,0.05210249,91981.0,91978.0,0.21744229]
[1763642106740,0.21744415,91978.0,91974.0,0.01087263]
[1763642106969,0.25549901,91977.0,91973.0,1.09554376]
[1763642107103,0.25549901,91977.0,91973.0,1.08467101]
[1763642107104,0.21745066,91975.0,91973.0,1.08467101]
[1763642108156,0.21745061,91975.0,91973.0,1.08467101]
[1763642108624,0.22832311,91976.0,91973.0,1.08467101]
[1763642108823,0.02718129,91975.0,91973.0,1.08467101]
[1763642109027,0.01087228,91977.0,91973.0,1.09554376]
[1763642109236,0.027181,91976.0,91973.0,1.09554376]
[1763642109447,0.001,91975.0,91974.0,0.21745258]
[1763642109859,0.002,91975.0,91974.0,0.21745258]
[1763642110242,0.001,91975.0,91974.0,0.21745258]
[1763642110438,0.05210249,91979.0,91978.0,0.21744127]
[1763642110655,0.05210249,91981.0,91978.0,0.21744127]
[1763642110822,0.05210249,91981.0,91974.0,0.01087263]
[1763642111028,0.01087228,91977.0,91973.0,1.08467101]
[1763642111228,0.05210249,91979.0,91973.0,1.08467101]
[1763642111229,0.02718041,91978.0,91973.0,1.09554376]
[1763642111429,0.02718041,91978.0,91973.0,1.08467101]
[1763642111430,0.21745068,91975.0,91973.0,1.08467101]
[1763642111829,0.21745275,91974.0,91973.0,1.08467101]
[1763642112075,0.23394275,91974.0,91973.0,1.08467101]
[1763642112279,0.21745275,91974.0,91973.0,1.08467101]
[1763642112492,0.28604524,91974.0,91973.0,1.08467101]
[1763642112692,0.05210249,91974.0,91973.0,1.30212613]
[1763642113107,0.01087181,91981.0,91975.0,0.21745039]
[1763642113108,0.027181,91976.0,91975.0,0.21745039]
[1763642113439,0.00999999,91980.0,91973.0,1.31299888]
[1763642113440,0.05210249,91979.0,91973.0,1.31299888]
[1763642113568,0.0792829,91978.0,91977.0,0.01087228]
[1763642113770,0.01239,91985.0,91977.0,0.01087228]
[1763642113771,0.0002,91990.0,91977.0,0.22831794]
[1763642114029,0.0002,91990.0,91987.0,0.21742202]
[1763642114323,0.0002,91990.0,91987.0,1.30209303]
[1763642115686,0.22848568,91990.0,91987.0,1.08467101]
[1763642115859,0.01107074,91990.0,91987.0,1.08467101]
[1763642116055,0.21765141,91988.0,91987.0,1.08467101]
[1763642116261,0.00023175,91988.0,91987.0,1.08467101]
[1763642116462,0.00023175,91988.0,91987.0,1.30209303]
[1763642116887,0.00023175,91988.0,91987.0,0.21742202]
[1763642117089,0.00023175,91988.0,91987.0,1.30209303]
[1763642119631,0.00023175,91988.0,91987.0,1.08467101]
[1763642120539,0.00023175,91988.0,91987.0,1.30209303]
[1763642120787,0.00023175,91988.0,91987.0,1.08467101]
[1763642120911,0.00023175,91988.0,91987.0,1.30209303]
[1763642121107,0.00023175,91988.0,91987.0,1.08467101]
[1763642121335,0.00023175,91988.0,91987.0,1.30209303]
[1763642121707,0.00023175,91988.0,91987.0,1.08467101]
[1763642122107,0.21765141,91988.0,91987.0,1.08467101]
[1763642122911,0.21765141,91988.0,91970.0,0.01087311]
[1763642122912,0.21744802,91976.0,91970.0,0.01087311]
[1763642123109,0.21744802,91976.0,91971.0,0.22833225]
[1763642123321,0.21744802,91976.0,91970.0,1.08467101]
[1763642123322,0.0108724,91976.0,91970.0,1.08467101]
[1763642123635,0.22831761,91978.0,91973.0,0.2283272]
[1763642123839,0.21745795,91972.0,91970.0,1.0847972]
[1763642124044,0.21745796,91972.0,91970.0,1.0847972]
[1763642124257,0.21745985,91971.0,91970.0,1.0847972]
[1763642124492,0.21745985,91971.0,91970.0,1.0857972]
[1763642124848,0.26956234,91971.0,91970.0,1.0857972]
[1763642125248,0.21744601,91977.0,91970.0,1.0857972]
[1763642125454,0.05210249,91977.0,91975.0,0.21744976]
[1763642125819,0.05210249,91979.0,91976.0,0.21744793]
[1763642125980,0.26954381,91979.0,91976.0,0.21744793]
[1763642126182,0.23831062,91980.0,91976.0,0.0108724]
[1763642126345,0.06297453,91979.0,91975.0,0.01087251]
[1763642126556,0.26954913,91977.0,91974.0,0.22832428]
[1763642126757,0.05210249,91980.0,91979.0,0.21744093]
[1763642126963,0.05210249,91980.0,91977.0,0.01087228]
[1763642127203,0.01087169,91982.0,91977.0,0.01087228]
[1763642127204,0.05210249,91981.0,91979.0,0.21743871]
[1763642127404,0.05210249,91981.0,91980.0,0.21743857]
[1763642127617,0.05210249,91983.0,91982.0,0.21743384]
[1763642127776,0.05210249,91982.0,91980.0,1.30210958]
[1763642128002,0.26953869,91981.0,91980.0,1.08467101]
[1763642129286,0.27053869,91981.0,91980.0,1.08467101]
[1763642129690,0.27153869,91981.0,91980.0,1.08467101]
[1763642130735,0.05410249,91981.0,91980.0,1.08467101]
[1763642130943,0.05410249,91981.0,91980.0,1.30210958]
[1763642131356,0.002,91981.0,91980.0,1.30210958]
[1763642133336,0.001,91981.0,91980.0,1.30210958]
[1763642134594,0.05210249,91983.0,91981.0,0.22830662]
[1763642134782,0.05210249,91983.0,91980.0,1.30210958]
[1763642134783,0.21743542,91982.0,91980.0,1.08467101]
[1763642135192,0.2174362,91981.0,91980.0,1.08467101]
[1763642137247,0.26953869,91981.0,91980.0,1.08467101]
[1763642137388,0.21743542,91982.0,91970.0,0.00012619]
[1763642137389,0.21745985,91971.0,91970.0,0.00012619]
[1763642137792,0.25735985,91971.0,91970.0,0.00012619]
[1763642138871,0.25835985,91971.0,91970.0,0.00012619]
[1763642139276,0.31046234,91971.0,91970.0,0.00012619]
[1763642139520,0.65716713,91971.0,91970.0,0.00012619]
[1763642139721,0.63446234,91971.0,91970.0,0.00012619]
[1763642142826,0.63412214,91971.0,91970.0,0.00012619]
[1763642143026,0.63780214,91971.0,91970.0,0.00012619]
[1763642143478,0.65815277,91971.0,91970.0,0.00012619]
[1763642143678,0.76731771,91971.0,91970.0,0.00012619]
[1763642144110,0.76531771,91971.0,91970.0,0.00012619]
[1763642144459,0.80098301,91971.0,91970.0,0.00012619]
[1763642148697,0.69181807,91971.0,91970.0,0.00012619]
[1763642152585,0.69180574,91971.0,91970.0,0.00012619]
[1763642155469,0.65190574,91971.0,91970.0,0.00012619]
[1763642155897,0.63156744,91971.0,91970.0,0.00012619]
[1763642156106,0.59890214,91971.0,91970.0,0.00012619]
[1763642156901,0.61445302,91971.0,91970.0,0.00012619]
[1763642157106,0.65435302,91971.0,91970.0,0.00012619]
[1763642158114,0.67469066,91971.0,91970.0,0.00012619]
[1763642158367,0.65913978,91971.0,91970.0,0.00012619]
[1763642160691,0.69180537,91971.0,91970.0,0.00012619]
[1763642161867,0.66807537,91971.0,91970.0,0.00012619]
[1763642162101,0.65913978,91971.0,91970.0,0.00012619]
[1763642162350,0.69180537,91971.0,91970.0,0.00012619]
[1763642162551,0.80097031,91971.0,91970.0,0.00012619]
[1763642162758,0.80665167,91971.0,91970.0,0.00012619]
[1763642163186,0.8066637,91971.0,91970.0,0.00012619]
[1763642164360,0.82443721,91971.0,91970.0,0.00012619]
[1763642164922,0.71527227,91971.0,91970.0,0.00012619]
[1763642165325,0.72545624,91971.0,91970.0,0.00012619]
[1763642165742,0.69154227,91971.0,91970.0,0.00012619]
[1763642166323,0.64921521,91971.0,91970.0,0.00012619]
[1763642166541,0.65289521,91971.0,91970.0,0.00012619]
[1763642166766,0.63491181,91971.0,91970.0,0.00012619]
[1763642166982,0.65829181,91971.0,91970.0,0.00012619]
[1763642167200,0.7909413,91971.0,91970.0,0.00012619]
[1763642167385,0.80113466,91971.0,91970.0,0.00012619]
[1763642168297,0.64924972,91971.0,91970.0,0.00012619]
[1763642168512,0.61925181,91971.0,91970.0,0.00012619]
[1763642169354,0.61257181,91971.0,91970.0,0.00012619]
[1763642169585,0.61825181,91971.0,91970.0,0.00012619]
[1763642173854,0.63391181,91971.0,91970.0,0.00012619]
[1763642174090,0.76645675,91971.0,91970.0,0.00012619]
[1763642174214,0.65729181,91971.0,91970.0,0.00012619]
[1763642175276,0.61825181,91971.0,91970.0,0.00012619]
[1763642175486,0.61859201,91971.0,91970.0,0.00012619]
[1763642176506,0.40113216,91971.0,91970.0,0.00012619]
[1763642176664,0.07445216,91971.0,91970.0,0.2175884]
[1763642176871,0.05410249,91971.0,91970.0,0.00012619]
[1763642177056,0.27156234,91971.0,91970.0,0.00012619]
[1763642177261,0.05410249,91971.0,91970.0,0.00012619]
[1763642178542,0.27156234,91971.0,91970.0,0.00012619]
[1763642179184,0.37813943,91971.0,91970.0,0.00012619]
[1763642179640,0.27156234,91971.0,91970.0,0.00012619]
[1763642179841,0.29194861,91971.0,91970.0,0.00012619]
[1763642180049,0.61494861,91971.0,91970.0,0.00012619]
[1763642182416,0.65398861,91971.0,91970.0,0.00012619]
[1763642182837,0.63060861,91971.0,91970.0,0.00012619]
[1763642183247,0.76315355,91971.0,91970.0,0.00012619]
[1763642183662,0.81930767,91971.0,91970.0,0.00012619]
[1763642183875,0.81930767,91971.0,91919.0,0.11085178]
[1763642183876,0.01087843,91925.0,91919.0,0.11085178]
[1763642184117,0.01087878,91922.0,91919.0,1.11775729]
[1763642184471,0.05210249,91926.0,91919.0,1.09597095]
[1763642184671,0.2284531,91923.0,91919.0,1.08509181]
[1763642184917,0.21757978,91921.0,91919.0,1.08509181]
[1763642185105,0.05210249,91927.0,91924.0,0.01087855]
[1763642185516,0.05210249,91929.0,91926.0,0.01087831]
[1763642185721,0.05210249,91927.0,91924.0,0.01087855]
[1763642185926,0.05210249,91927.0,91924.0,0.22844839]
[1763642186125,0.05210249,91927.0,91924.0,0.01087855]
[1763642186330,0.05210249,91928.0,91925.0,0.01087843]
[1763642186756,0.05210249,91928.0,91925.0,0.22844553]
[1763642186919,0.001,91927.0,91925.0,0.22844553]
[1763642187268,0.01187819,91927.0,91922.0,0.01087878]
[1763642187477,0.001,91927.0,91925.0,0.21756758]
[1763642188244,0.05210249,91926.0,91925.0,0.21756758]
[1763642188812,0.2175504,91933.0,91929.0,0.22843488]
[1763642188813,0.05210249,91931.0,91929.0,0.22843488]
[1763642189031,0.05210249,91931.0,91929.0,1.31310589]
[1763642189264,0.26965932,91930.0,91929.0,1.08467101]
[1763642189563,0.05210249,91930.0,91929.0,1.08467101]
[1763642191228,0.02175508,91943.0,91937.0,0.01087701]
[1763642191428,0.0115,91961.0,91937.0,0.01087701]
[1763642191429,0.01087535,91951.0,91946.0,0.01087594]
[1763642191653,0.21751593,91948.0,91946.0,1.08467101]
[1763642191849,0.05210249,91947.0,91946.0,1.08467101]
[1763642192072,0.05210249,91948.0,91946.0,1.08467101]
[1763642192253,0.26961736,91948.0,91946.0,1.08467101]
[1763642192453,0.05210249,91948.0,91946.0,1.08467101]
[1763642192657,0.05210249,91948.0,91946.0,1.30218864]
[1763642192858,0.2696191,91947.0,91946.0,1.08467101]
[1763642193479,0.05210249,91940.0,91935.0,0.22842176]
[1763642193759,0.21754109,91937.0,91935.0,1.08467101]
[1763642193910,0.01087689,91938.0,91935.0,1.08467101]
[1763642194303,0.21754052,91937.0,91935.0,1.08467101]
[1763642194509,0.21753365,91940.0,91937.0,0.01087701]
[1763642194716,0.2284123,91939.0,91936.0,0.21754234]
[1763642195030,0.21754044,91937.0,91935.0,1.08467101]
[1763642195632,0.02719282,91936.0,91935.0,1.08467101]
[1763642197445,0.24473545,91936.0,91935.0,1.08467101]
[1763642197642,0.26964512,91936.0,91935.0,1.08467101]
[1763642200114,0.30774512,91936.0,91935.0,1.08467101]
[1763642200319,0.63074512,91936.0,91935.0,1.08467101]
[1763642200529,0.63074512,91936.0,91919.0,0.0041008]
[1763642200530,0.2175805,91920.0,91919.0,0.0041008]
[1763642200735,0.2175805,91920.0,91919.0,1.08877181]
[1763642201341,0.22845455,91922.0,91919.0,1.08877181]
[1763642201548,0.2175805,91920.0,91919.0,1.08877181]
[1763642201958,0.21757864,91921.0,91919.0,1.08877181]
[1763642202133,0.2175805,91920.0,91919.0,1.08877181]
[1763642202551,0.217573,91924.0,91919.0,1.08877181]
[1763642202552,0.001,91936.0,91933.0,0.01087748]